bitfinex/quotes_BTCUSD_20240730
["timestamp","ask_amount","ask_price","bid_price","bid_amount"]
[1722320441025,0.239803,66722.0,66717.0,0.1249]
[1722320441224,0.825422,66718.0,66717.0,0.1249]
[1722320441631,0.585607,66718.0,66717.0,0.1249]
[1722320442242,0.586607,66718.0,66717.0,0.1249]
[1722320442495,0.9441613,66718.0,66717.0,0.1249]
[1722320442703,0.828422,66718.0,66717.0,0.1349]
[1722320443055,0.828422,66718.0,66717.0,0.1249]
[1722320443056,0.586607,66718.0,66717.0,0.1249]
[1722320443269,0.001,66718.0,66717.0,0.1249]
[1722320443459,0.001,66718.0,66717.0,0.13942619]
[1722320443460,0.002,66718.0,66717.0,0.13942619]
[1722320443661,0.002,66718.0,66717.0,0.13642881]
[1722320444327,0.002,66718.0,66717.0,0.25633781]
[1722320444664,0.002,66718.0,66717.0,0.83097093]
[1722320444862,0.001,66718.0,66717.0,0.82797381]
[1722320445085,0.003,66718.0,66717.0,0.84597381]
[1722320445259,0.003,66718.0,66717.0,0.83697381]
[1722320445260,0.001,66718.0,66717.0,0.83697381]
[1722320445684,0.001,66718.0,66717.0,0.84597381]
[1722320445685,0.002,66718.0,66717.0,0.84597381]
[1722320446266,0.002,66718.0,66717.0,0.60615581]
[1722320446836,0.002,66718.0,66717.0,0.36633781]
[1722320447873,0.002,66718.0,66717.0,0.60615581]
[1722320449244,0.002,66718.0,66717.0,0.36633781]
[1722320449814,0.002,66718.0,66717.0,0.60615581]
[1722320451271,0.002,66718.0,66717.0,1.23642485]
[1722320451495,0.001,66718.0,66717.0,1.27850277]
[1722320451671,0.594031,66733.0,66726.0,0.0789]
[1722320451672,0.5857207,66733.0,66726.0,0.0789]
[1722320451873,0.1200207,66733.0,66726.0,0.198792]
[1722320452072,0.1200207,66733.0,66727.0,0.0034734]
[1722320452272,0.1200207,66733.0,66728.0,0.1428]
[1722320452618,0.0001397,66733.0,66728.0,0.1428]
[1722320452759,0.0001397,66733.0,66729.0,0.0805734]
[1722320452959,0.0001397,66733.0,66730.0,0.0656]
[1722320453232,0.0011397,66733.0,66731.0,0.0788]
[1722320453357,0.0021397,66733.0,66731.0,0.0788]
[1722320453555,0.0011397,66733.0,66732.0,0.0034734]
[1722320453991,0.00107098,66733.0,66732.0,0.0034734]
[1722320454596,7.098e-05,66733.0,66732.0,0.0034734]
[1722320455402,7.098e-05,66733.0,66732.0,0.0887734]
[1722320455403,0.02357977,66733.0,66732.0,0.0887734]
[1722320455791,7.098e-05,66733.0,66732.0,0.2738554]
[1722320456164,7.098e-05,66733.0,66732.0,0.1539734]
[1722320456585,7.098e-05,66733.0,66732.0,0.1579734]
[1722320457423,7.098e-05,66733.0,66732.0,0.2778554]
[1722320458231,7.098e-05,66733.0,66732.0,0.1579734]
[1722320458437,0.02358059,66733.0,66732.0,0.1579734]
[1722320459941,0.239745,66738.0,66732.0,0.1579734]
[1722320460130,0.239745,66738.0,66732.0,0.15746225]
[1722320460324,0.239752,66736.0,66732.0,0.15746225]
[1722320460702,0.239752,66736.0,66732.0,0.09226225]
[1722320460917,0.239748,66737.0,66732.0,0.09226225]
[1722320461286,0.239737,66740.0,66732.0,0.09226225]
[1722320461287,0.119879,66734.0,66732.0,0.09226225]
[1722320461510,0.239752,66736.0,66732.0,0.0853]
[1722320461706,0.239752,66736.0,66733.0,0.00296225]
[1722320461928,0.11988,66734.0,66733.0,0.00296225]
[1722320463000,0.11988,66734.0,66729.0,0.1411]
[1722320463001,0.11988,66734.0,66730.0,0.1]
[1722320463209,0.239752,66736.0,66733.0,0.00296225]
[1722320463210,0.119878,66735.0,66733.0,0.00296225]
[1722320463360,0.11988,66733.0,66732.0,0.004]
[1722320463967,0.11988,66733.0,66732.0,0.00696225]
[1722320464600,0.11988,66733.0,66732.0,0.00296225]
[1722320465031,0.11988,66733.0,66730.0,0.1]
[1722320465237,0.11988,66733.0,66730.0,0.103]
[1722320465488,0.11988,66733.0,66731.0,0.00296225]
[1722320465489,0.14338926,66733.0,66731.0,0.00296225]
[1722320465607,0.02350926,66733.0,66732.0,0.005]
[1722320465803,0.02350926,66733.0,66732.0,0.01]
[1722320466026,0.02350926,66733.0,66732.0,0.005]
[1722320466257,0.02350926,66733.0,66732.0,0.00296225]
[1722320466497,0.02350926,66733.0,66730.0,0.11]
[1722320466745,0.02350926,66733.0,66732.0,0.00296225]
[1722320466964,0.02350926,66733.0,66732.0,0.0794]
[1722320467188,0.02350926,66733.0,66732.0,0.26634238]
[1722320467633,0.02350926,66733.0,66732.0,0.50610738]
[1722320467930,0.248169,66745.0,66735.0,0.1435]
[1722320467931,0.00845,66745.0,66735.0,0.1435]
[1722320468132,0.00845,66745.0,66737.0,0.263373]
[1722320468133,0.128309,66745.0,66737.0,0.263373]
[1722320468359,0.00845,66745.0,66739.0,0.119869]
[1722320468600,0.00845,66745.0,66738.0,0.219871]
[1722320468804,0.128309,66745.0,66740.0,0.00295371]
[1722320469018,0.128309,66745.0,66739.0,0.0787]
[1722320469019,0.00845,66745.0,66739.0,0.198569]
[1722320469234,0.01645,66745.0,66741.0,0.00295371]
[1722320469492,0.02545,66745.0,66739.0,0.198569]
[1722320469693,0.02545,66745.0,66742.0,0.00295371]
[1722320469694,0.01645,66745.0,66742.0,0.00295371]
[1722320469898,0.359587,66743.0,66742.0,0.00295371]
[1722320470070,0.359587,66743.0,66738.0,0.1]
[1722320470071,0.119869,66739.0,66738.0,0.1]
[1722320470298,0.239729,66742.0,66737.0,0.1651]
[1722320470498,0.119868,66740.0,66737.0,0.1651]
[1722320470707,0.239734,66741.0,66737.0,0.1641]
[1722320471067,0.119871,66738.0,66737.0,0.1641]
[1722320471396,0.119871,66738.0,66737.0,0.1]
[1722320471601,0.119877,66735.0,66731.0,0.0803]
[1722320471923,0.119877,66735.0,66729.0,0.1]
[1722320471924,0.119881,66733.0,66729.0,0.1]
[1722320472242,0.119881,66733.0,66728.0,0.1]
[1722320472243,0.239762,66733.0,66728.0,0.1]
[1722320472401,0.239739,66740.0,66727.0,0.08902891]
[1722320472402,0.119883,66732.0,66727.0,0.08902891]
[1722320472598,0.119884,66731.0,66727.0,0.08902891]
[1722320472889,0.119884,66731.0,66727.0,0.0803]
[1722320473446,0.14339019,66733.0,66728.0,0.014]
[1722320473652,0.119882,66732.0,66728.0,0.014]
[1722320473968,0.119886,66730.0,66728.0,0.014]
[1722320474168,0.239766,66732.0,66728.0,0.014]
[1722320474370,0.02350919,66733.0,66728.0,0.028]
[1722320474547,0.119887,66729.0,66728.0,0.128]
[1722320474711,0.119887,66729.0,66726.0,0.1]
[1722320474712,0.119891,66727.0,66726.0,0.1]
[1722320475964,0.119891,66727.0,66722.0,0.1794]
[1722320476399,0.119891,66727.0,66726.0,0.014]
[1722320477744,0.119891,66727.0,66722.0,0.1794]
[1722320477745,0.119889,66728.0,66722.0,0.1794]
[1722320477951,0.119889,66728.0,66722.0,0.1934]
[1722320478146,0.119889,66728.0,66726.0,0.014]
[1722320479148,0.119889,66728.0,66722.0,0.1794]
[1722320479588,0.119889,66728.0,66722.0,0.1934]
[1722320479902,0.02351021,66727.0,66722.0,0.2074]
[1722320480122,0.300962,66733.0,66722.0,0.2074]
[1722320480123,0.119888,66729.0,66722.0,0.2074]
[1722320480776,0.119888,66729.0,66722.0,0.1934]
[1722320481093,0.119888,66729.0,66722.0,0.3133]
[1722320481423,0.239765,66732.0,66722.0,0.3273]
[1722320481619,0.239765,66732.0,66722.0,0.3133]
[1722320481824,0.119886,66730.0,66722.0,0.3133]
[1722320482050,0.119886,66730.0,66722.0,0.3273]
[1722320482246,0.0015542,66729.0,66722.0,0.433199]
[1722320482454,0.239733,66741.0,66729.0,0.0777]
[1722320482455,0.04480226,66737.0,66729.0,0.0777]
[1722320482646,0.12890339,66738.0,66729.0,0.0777]
[1722320482647,0.10650226,66738.0,66730.0,0.0642]
[1722320482848,0.119875,66736.0,66730.0,0.0642]
[1722320483434,0.02350884,66735.0,66730.0,0.0642]
[1722320483635,0.02350884,66735.0,66731.0,0.00294174]
[1722320483847,0.119875,66736.0,66731.0,0.00294174]
[1722320484479,0.16475343,66735.0,66731.0,0.00294174]
[1722320484674,0.119879,66734.0,66731.0,0.00294174]
[1722320484874,0.119879,66734.0,66725.0,0.239789]
[1722320484875,0.28463543,66734.0,66726.0,0.1]
[1722320485098,0.16475643,66733.0,66731.0,0.012]
[1722320485313,0.0015542,66732.0,66731.0,0.012]
[1722320485462,0.08975287,66732.0,66731.0,0.012]
[1722320485664,0.20963287,66733.0,66731.0,0.01493464]
[1722320485888,0.20963287,66733.0,66731.0,0.00293464]
[1722320486066,0.2097019,66733.0,66731.0,0.00293464]
[1722320486292,0.00084267,66732.0,66731.0,0.00293464]
[1722320486455,0.23215738,66733.0,66731.0,0.00293464]
[1722320486664,0.11227738,66733.0,66731.0,0.00293464]
[1722320486871,0.119879,66734.0,66731.0,0.00293464]
[1722320487075,0.08983777,66733.0,66731.0,0.00293464]
[1722320487464,0.00096947,66732.0,66731.0,0.119884]
[1722320487679,0.0449224,66734.0,66731.0,0.386968]
[1722320487852,0.0449224,66736.0,66733.0,0.11988]
[1722320488102,0.0449224,66736.0,66731.0,0.400968]
[1722320488103,0.0449224,66736.0,66732.0,0.239764]
[1722320488312,0.0449224,66736.0,66735.0,0.119877]
[1722320488665,0.0449224,66736.0,66733.0,0.1]
[1722320489050,0.0449224,66736.0,66734.0,0.119878]
[1722320489259,0.0449224,66736.0,66733.0,0.1]
[1722320489260,0.0449224,66736.0,66735.0,0.119877]
[1722320489779,0.0449224,66736.0,66735.0,0.99901804]
[1722320489985,0.00083,66739.0,66738.0,0.359614]
[1722320490150,0.04575497,66739.0,66738.0,0.359614]
[1722320490350,0.00083,66739.0,66738.0,0.359614]
[1722320490672,0.0243358,66739.0,66738.0,0.359614]
[1722320491311,0.0243358,66739.0,66738.0,0.367614]
[1722320491787,0.0243358,66739.0,66738.0,0.375614]
[1722320491993,0.0243358,66739.0,66738.0,0.135871]
[1722320492290,0.0243358,66739.0,66738.0,0.375614]
[1722320492977,0.0243358,66739.0,66738.0,0.520514]
[1722320493180,0.0243358,66739.0,66738.0,0.620514]
[1722320493976,0.0243358,66739.0,66738.0,0.380771]
[1722320494168,0.0243358,66739.0,66738.0,0.2609]
[1722320494541,0.0243358,66739.0,66738.0,0.116]
[1722320494808,0.06924833,66739.0,66738.0,0.235871]
[1722320495011,0.06924833,66739.0,66738.0,0.475614]
[1722320495012,0.0243358,66739.0,66738.0,0.475614]
[1722320496218,0.00083,66739.0,66738.0,0.475614]
[1722320496422,0.00083,66739.0,66738.0,0.550814]
[1722320496742,0.00083,66739.0,66738.0,1.00369004]
[1722320496941,0.00083,66739.0,66738.0,1.02669004]
[1722320497179,0.00083,66739.0,66738.0,1.39095162]
[1722320497496,0.00083,66739.0,66738.0,1.40095162]
[1722320497693,0.00083,66739.0,66738.0,1.39295162]
[1722320497892,0.00083,66739.0,66738.0,1.37495162]
[1722320498246,0.00083,66739.0,66738.0,1.38895162]
[1722320498446,0.00083,66739.0,66738.0,1.40295162]
[1722320498651,0.00083,66739.0,66738.0,1.40586087]
[1722320499666,0.02433441,66739.0,66738.0,1.41586087]
[1722320500008,0.02433441,66739.0,66738.0,1.40585622]
[1722320500806,0.00083,66739.0,66738.0,1.40585622]
[1722320501330,0.00083,66739.0,66738.0,1.43585622]
[1722320501916,0.00083,66739.0,66738.0,1.67559922]
[1722320502245,0.00083,66739.0,66738.0,1.67759922]
[1722320502649,0.00083,66739.0,66738.0,1.65559922]
[1722320502886,0.00083,66739.0,66738.0,1.41585622]
[1722320503093,0.00083,66739.0,66738.0,1.29134229]
[1722320503289,0.00083,66739.0,66738.0,1.41584942]
[1722320503668,0.02433333,66739.0,66738.0,1.41584942]
[1722320504846,0.02433333,66739.0,66738.0,1.43584942]
[1722320505040,0.00083,66739.0,66738.0,1.43784942]
[1722320505617,0.00083,66739.0,66738.0,1.43784826]
[1722320506488,0.00083,66739.0,66738.0,1.4378446]
[1722320506958,0.00083,66739.0,66738.0,1.6775876]
[1722320507207,0.00845,66745.0,66744.0,1.038263]
[1722320507411,0.00845,66745.0,66744.0,1.67611935]
[1722320508100,0.00845,66745.0,66744.0,1.67898042]
[1722320508584,0.03195136,66745.0,66744.0,1.67898042]
[1722320509296,0.03195136,66745.0,66744.0,1.69298042]
[1722320509770,0.00845,66745.0,66744.0,1.69296836]
[1722320510779,0.00845,66745.0,66744.0,1.70696836]
[1722320511754,0.00845,66750.0,66749.0,1.110663]
[1722320512095,0.00845,66750.0,66749.0,1.51858009]
[1722320512289,0.00845,66750.0,66749.0,1.68618009]
[1722320512523,0.03194906,66750.0,66749.0,1.68618009]
[1722320513015,0.03194906,66750.0,66749.0,1.68616577]
[1722320513016,0.00845,66750.0,66749.0,1.68616577]
[1722320513239,0.00845,66750.0,66749.0,1.70016577]
[1722320514667,0.00845,66750.0,66749.0,1.67816577]
[1722320514892,0.00845,66750.0,66749.0,1.69216577]
[1722320515340,0.00845,66750.0,66749.0,1.6921716]
[1722320515579,0.00845,66750.0,66749.0,1.6781716]
[1722320516074,0.03194883,66750.0,66749.0,1.6921716]
[1722320516312,0.03194883,66750.0,66749.0,1.69816799]
[1722320516536,0.03194883,66750.0,66749.0,1.68616799]
[1722320516998,0.03194883,66750.0,66749.0,1.70016799]
[1722320517231,0.03194883,66750.0,66749.0,1.71416799]
[1722320517456,0.03194883,66750.0,66749.0,1.70016799]
[1722320517680,0.00845,66750.0,66749.0,1.67816799]
[1722320517932,0.00845,66750.0,66749.0,1.69216799]
[1722320518634,0.00845,66750.0,66749.0,1.67816799]
[1722320518864,0.00845,66750.0,66749.0,1.69216799]
[1722320519313,0.00845,66750.0,66749.0,1.56768984]
[1722320519539,0.00845,66750.0,66749.0,1.6921707]
[1722320519790,0.00845,66750.0,66749.0,1.7121707]
[1722320520024,0.00845,66750.0,66749.0,1.6921707]
[1722320520231,0.00845,66750.0,66749.0,1.7141707]
[1722320521155,0.03194899,66750.0,66749.0,1.7141707]
[1722320521378,0.00845,66752.0,66751.0,1.285572]
[1722320521538,0.00845,66752.0,66751.0,1.68661036]
[1722320521785,0.00845,66752.0,66751.0,1.68660529]
[1722320522228,0.00845,66752.0,66751.0,1.5621295]
[1722320522436,0.00845,66752.0,66751.0,1.68660317]
[1722320522855,0.00845,66752.0,66751.0,1.70060317]
[1722320523028,0.00845,66752.0,66751.0,1.71460317]
[1722320523634,0.00844,66762.0,66761.0,0.86885]
[1722320523836,0.00844,66762.0,66761.0,1.24395671]
[1722320524050,0.00844,66762.0,66761.0,1.24394946]
[1722320524288,0.00844,66762.0,66761.0,1.26987392]
[1722320524704,0.03193618,66762.0,66761.0,1.26987392]
[1722320524971,0.03193618,66762.0,66761.0,1.26987141]
[1722320525162,0.00844,66762.0,66761.0,1.26987141]
[1722320525317,0.00844,66762.0,66761.0,1.28387141]
[1722320526372,0.00844,66762.0,66761.0,1.29787141]
[1722320526575,0.00844,66762.0,66761.0,1.69173141]
[1722320527372,0.00844,66762.0,66761.0,1.67773141]
[1722320528102,0.00844,66762.0,66761.0,1.69772665]
[1722320528263,0.03193507,66762.0,66761.0,1.71172665]
[1722320528720,0.00844,66762.0,66761.0,1.71372665]
[1722320529021,0.00909,66762.0,66761.0,1.90632665]
[1722320529450,0.00909,66762.0,66761.0,1.90432665]
[1722320530211,0.00909,66762.0,66761.0,1.64466665]
[1722320530430,0.00909,66762.0,66761.0,1.45206665]
[1722320530875,0.00909,66762.0,66761.0,1.30786665]
[1722320531161,0.00909,66762.0,66761.0,1.1834075]
[1722320531373,0.00909,66762.0,66761.0,1.29787407]
[1722320531600,0.00909,66762.0,66761.0,1.30787407]
[1722320531799,0.00909,66762.0,66761.0,1.3078749]
[1722320532041,0.0325854,66762.0,66761.0,1.3078749]
[1722320532260,0.00909,66762.0,66761.0,1.3078749]
[1722320532463,0.00909,66762.0,66761.0,1.31673158]
[1722320532662,0.00909,66762.0,66761.0,1.33673158]
[1722320532870,0.00909,66762.0,66761.0,1.31673158]
[1722320533071,0.00909,66762.0,66761.0,1.33673158]
[1722320534167,0.00909,66762.0,66761.0,1.33873158]
[1722320534372,0.00909,66762.0,66761.0,1.51692418]
[1722320534573,0.00909,66762.0,66761.0,1.6413852]
[1722320534927,0.00844,66768.0,66764.0,1.140465]
[1722320535128,0.00844,66768.0,66764.0,1.53855906]
[1722320535246,0.00844,66768.0,66764.0,1.54144499]
[1722320535667,0.03193436,66765.0,66764.0,1.54144499]
[1722320536191,0.03193436,66765.0,66764.0,1.61774499]
[1722320536659,0.03193436,66765.0,66764.0,1.66997099]
[1722320536830,0.00844,66765.0,66764.0,1.86987522]
[1722320537294,0.00844,66765.0,66764.0,1.85587522]
[1722320537460,0.00844,66765.0,66764.0,1.86985949]
[1722320537705,0.00844,66765.0,66764.0,1.52128397]
[1722320538004,0.00844,66768.0,66764.0,1.52128397]
[1722320538005,0.00844,66768.0,66767.0,0.900776]
[1722320538209,0.00844,66768.0,66767.0,1.29885571]
[1722320538412,0.00844,66768.0,66767.0,1.30172489]
[1722320538732,0.00844,66768.0,66767.0,1.68226389]
[1722320539114,0.14944,66781.0,66772.0,0.958013]
[1722320539115,0.00844,66781.0,66772.0,0.958013]
[1722320539323,0.00844,66781.0,66772.0,1.35609271]
[1722320539610,0.00238909,66773.0,66772.0,1.42204745]
[1722320539990,0.00844,66781.0,66780.0,0.878612]
[1722320540189,0.00844,66785.0,66783.0,0.18183]
[1722320540399,0.00844,66785.0,66784.0,0.421407]
[1722320540400,1e-08,66785.0,66784.0,0.421407]
[1722320540639,0.02844,66800.0,66784.0,0.421407]
[1722320540640,0.02844,66800.0,66790.0,0.66093]
[1722320540773,0.02844,66800.0,66790.0,1.70868347]
[1722320540972,0.06914,66791.0,66790.0,1.02697147]
[1722320541200,0.06914,66791.0,66790.0,0.58655901]
[1722320541400,0.06914,66791.0,66790.0,0.70170658]
[1722320541601,0.06914,66791.0,66790.0,1.06568255]
[1722320541832,0.06914,66791.0,66790.0,0.82612655]
[1722320542394,0.06914,66791.0,66790.0,1.23031559]
[1722320542562,0.06914,66791.0,66790.0,1.26935559]
[1722320542768,0.06974,66791.0,66790.0,1.26935559]
[1722320542923,0.06974,66791.0,66790.0,1.27935019]
[1722320543323,0.06974,66791.0,66790.0,1.29335019]
[1722320543682,0.0932273,66791.0,66790.0,1.28335019]
[1722320543847,0.0932273,66791.0,66790.0,1.29735019]
[1722320544007,0.06974,66791.0,66790.0,1.30735019]
[1722320545377,0.06974,66791.0,66790.0,1.31640706]
[1722320546495,0.06974,66791.0,66790.0,1.33840706]
[1722320546496,0.00844,66791.0,66790.0,1.33840706]
[1722320546626,0.00844,66791.0,66790.0,1.50900706]
[1722320547026,0.00844,66791.0,66790.0,1.50899777]
[1722320547228,0.031926,66791.0,66790.0,1.50899777]
[1722320549299,0.031926,66791.0,66790.0,1.31639777]
[1722320550639,0.00844,66791.0,66790.0,1.31639777]
[1722320550859,0.00844,66791.0,66790.0,1.31639417]
[1722320551198,0.00844,66791.0,66790.0,1.33639417]
[1722320551418,0.00844,66791.0,66790.0,1.31639417]
[1722320552109,0.00844,66791.0,66790.0,1.33639417]
[1722320552552,0.00844,66791.0,66790.0,1.31639417]
[1722320553250,0.00844,66791.0,66790.0,1.33639417]
[1722320553461,0.00844,66791.0,66790.0,1.33839439]
[1722320553918,0.03192596,66791.0,66790.0,1.33839439]
[1722320554134,0.00844,66791.0,66790.0,1.31639439]
[1722320555777,0.14564,66791.0,66790.0,1.30639439]
[1722320556496,0.14564,66791.0,66790.0,0.80428239]
[1722320556722,0.14564,66791.0,66790.0,0.26427535]
[1722320556971,0.14564,66791.0,66790.0,0.03987345]
[1722320557187,0.265416,66791.0,66790.0,0.03987345]
[1722320557384,0.16912812,66791.0,66790.0,0.028]
[1722320557684,0.16912812,66791.0,66790.0,0.014]
[1722320557914,0.03192812,66791.0,66787.0,0.00906791]
[1722320558079,0.1415,66789.0,66787.0,0.00906791]
[1722320558304,0.11978,66789.0,66788.0,0.0027687]
[1722320558509,0.0015542,66790.0,66788.0,0.0027687]
[1722320558698,0.0015542,66790.0,66783.0,0.21979]
[1722320558914,0.0015542,66790.0,66775.0,0.00018027]
[1722320558915,0.0626,66784.0,66775.0,0.00018027]
[1722320559266,0.15218724,66790.0,66775.0,0.00018027]
[1722320559267,0.0626,66782.0,66778.0,0.119799]
[1722320559486,0.0626,66782.0,66775.0,0.00018027]
[1722320559487,0.0015542,66781.0,66779.0,0.119797]
[1722320559917,0.0015542,66781.0,66778.0,0.119799]
[1722320560130,0.0015542,66781.0,66775.0,0.00018027]
[1722320560553,0.0015542,66781.0,66777.0,0.119801]
[1722320560774,0.0612,66780.0,66778.0,0.1]
[1722320560984,0.0612,66780.0,66779.0,0.009]
[1722320561155,0.0612,66780.0,66778.0,0.1]
[1722320561304,0.0612,66780.0,66775.0,0.00018027]
[1722320561305,0.260201,66778.0,66775.0,0.00018027]
[1722320561504,0.1404,66776.0,66775.0,0.02818027]
[1722320561732,0.1404,66776.0,66775.0,0.01418027]
[1722320561936,0.16389279,66776.0,66775.0,0.01418027]
[1722320562136,0.16389279,66776.0,66775.0,0.00018027]
[1722320562345,0.1419542,66776.0,66775.0,0.00018027]
[1722320562767,0.1404,66776.0,66775.0,0.00018027]
[1722320563763,0.1404,66776.0,66775.0,0.01418027]
[1722320564342,0.1404,66776.0,66775.0,0.02818027]
[1722320564591,0.1404,66776.0,66775.0,0.01418027]
[1722320564982,0.1404,66776.0,66775.0,0.02818027]
[1722320565194,0.16389318,66776.0,66775.0,0.02818027]
[1722320565741,0.1404,66776.0,66775.0,0.02818027]
[1722320566398,0.1404,66776.0,66775.0,0.14798527]
[1722320566586,0.1404,66776.0,66775.0,0.12818027]
[1722320569084,0.1404,66776.0,66775.0,0.02818027]
[1722320569405,0.16389301,66776.0,66775.0,0.02818027]
[1722320569785,0.08399301,66776.0,66775.0,0.14798527]
[1722320570123,0.08399301,66776.0,66775.0,0.38759527]
[1722320570362,0.08399301,66776.0,66775.0,0.48759527]
[1722320570363,0.0605,66776.0,66775.0,0.48759527]
[1722320570972,0.0605,66776.0,66775.0,0.12818027]
[1722320571292,0.0605,66776.0,66775.0,0.01418027]
[1722320571535,0.0605,66776.0,66775.0,0.14798527]
[1722320571743,0.0605,66776.0,66775.0,0.23398527]
[1722320571949,0.0605,66776.0,66775.0,0.24798527]
[1722320572550,0.0605,66776.0,66775.0,0.24889827]
[1722320572758,0.0605,66776.0,66775.0,0.23489827]
[1722320573163,0.0605,66776.0,66775.0,0.47450827]
[1722320573514,0.0605,66776.0,66775.0,0.23489827]
[1722320573718,0.0605,66776.0,66775.0,0.23754422]
[1722320574117,0.1369,66776.0,66775.0,0.13173922]
[1722320576740,0.1369,66776.0,66775.0,0.03173922]
[1722320576964,0.1369,66776.0,66775.0,0.13173922]
[1722320577587,0.16039264,66776.0,66775.0,0.13173922]
[1722320577934,0.16039264,66776.0,66775.0,0.03173922]
[1722320580067,0.16039264,66776.0,66775.0,0.15154422]
[1722320580268,0.16039264,66776.0,66775.0,0.13173922]
[1722320581748,0.16039264,66776.0,66775.0,0.03173922]
[1722320581749,0.51980264,66776.0,66775.0,0.03173922]
[1722320581931,0.75940964,66776.0,66775.0,0.03173922]
[1722320582146,0.75940964,66776.0,66775.0,0.02909327]
[1722320582366,0.735917,66776.0,66775.0,0.02909327]
[1722320582811,0.735917,66776.0,66775.0,0.01509327]
[1722320583286,0.735917,66776.0,66775.0,0.02809327]
[1722320584003,0.735917,66776.0,66775.0,0.01409327]
[1722320584202,0.735917,66776.0,66775.0,0.02709327]
[1722320584903,0.1369,66776.0,66775.0,0.02709327]
[1722320585748,0.1369,66776.0,66775.0,0.02974345]
[1722320586331,0.1369,66776.0,66775.0,0.14954845]
[1722320586592,0.1369,66776.0,66775.0,0.02974345]
[1722320590219,0.16039338,66776.0,66775.0,0.02974345]
[1722320590643,0.1369,66776.0,66775.0,0.02974345]
[1722320591249,0.0605,66776.0,66775.0,0.14954845]
[1722320593328,0.0605,66776.0,66775.0,0.02974345]
[1722320594867,0.1378,66776.0,66775.0,0.02974345]
[1722320595066,0.49721,66776.0,66775.0,0.02974345]
[1722320595253,0.49721,66776.0,66775.0,0.02709327]
[1722320595915,0.257603,66776.0,66775.0,0.0297621]
[1722320596125,0.257603,66776.0,66775.0,0.02709327]
[1722320596877,0.257603,66776.0,66775.0,0.0297621]
[1722320597845,0.28109662,66776.0,66775.0,0.0297621]
[1722320598855,0.28109662,66776.0,66775.0,0.02709327]
[1722320599177,0.257603,66776.0,66775.0,0.02709327]
[1722320599579,0.30241242,66776.0,66775.0,0.02709327]
[1722320600388,0.54201942,66776.0,66775.0,0.02709327]
[1722320600563,0.32481714,66776.0,66775.0,0.02709327]
[1722320601485,0.34741362,66776.0,66775.0,0.02709327]
[1722320601699,0.34896782,66776.0,66775.0,0.02976061]
[1722320601905,0.2591572,66776.0,66775.0,0.02976061]
[1722320602108,0.2591572,66776.0,66775.0,0.02709327]
[1722320602109,0.34741453,66776.0,66775.0,0.02709327]
[1722320602312,0.34896873,66776.0,66775.0,0.02709327]
[1722320602684,0.28265074,66776.0,66775.0,0.02709327]
[1722320602813,0.28109654,66776.0,66775.0,0.02709327]
[1722320603664,0.257603,66776.0,66775.0,0.02709327]
[1722320604523,0.1378,66776.0,66775.0,0.02709327]
[1722320604708,0.1378,66776.0,66775.0,0.02976061]
[1722320604928,0.25019256,66776.0,66775.0,0.02976061]
[1722320605127,0.1378,66776.0,66775.0,0.02976061]
[1722320605410,0.1378,66776.0,66775.0,0.02709327]
[1722320605794,0.257603,66776.0,66775.0,0.02976061]
[1722320605930,0.257603,66776.0,66775.0,0.02709327]
[1722320606557,0.1378,66776.0,66775.0,0.02709327]
[1722320606736,0.1378,66776.0,66775.0,0.02976061]
[1722320606944,0.16129318,66776.0,66775.0,0.02976061]
[1722320607147,0.16284738,66776.0,66775.0,0.02976061]
[1722320607579,0.1393542,66776.0,66775.0,0.02976061]
[1722320608925,0.2591572,66776.0,66775.0,0.02976061]
[1722320609131,0.257603,66776.0,66775.0,0.02976061]
[1722320610111,0.1378,66776.0,66775.0,0.02976061]
[1722320610666,0.16284738,66776.0,66775.0,0.02976061]
[1722320610778,0.1393542,66776.0,66775.0,0.02976061]
[1722320611622,0.1378,66776.0,66775.0,0.02976061]
[1722320611804,0.2591572,66776.0,66775.0,0.02976061]
[1722320612159,0.257603,66776.0,66775.0,0.02976061]
[1722320612810,0.0605,66776.0,66775.0,0.02976061]
[1722320613008,0.0620542,66776.0,66775.0,0.02976061]
[1722320613420,0.1818572,66776.0,66775.0,0.02976061]
[1722320613620,0.180303,66776.0,66775.0,0.02976061]
[1722320613838,0.0605,66776.0,66775.0,0.02976061]
[1722320614039,0.08399318,66776.0,66775.0,0.02976061]
[1722320614267,0.08554738,66776.0,66775.0,0.02976061]
[1722320615077,0.20535038,66776.0,66775.0,0.02976061]
[1722320615279,0.20379618,66776.0,66775.0,0.02976061]
[1722320616995,0.68301018,66776.0,66775.0,0.02976061]
[1722320617199,0.76591018,66776.0,66775.0,0.02976061]
[1722320617415,0.76591018,66776.0,66775.0,0.02709327]
[1722320617620,0.90081374,66776.0,66775.0,0.02709327]
[1722320617994,0.6612253,66776.0,66775.0,0.02709327]
[1722320618203,0.6627795,66776.0,66775.0,0.02709327]
[1722320618544,0.6612253,66776.0,66775.0,0.02709327]
[1722320618742,0.66277795,66776.0,66775.0,0.02709327]
[1722320619307,0.90238495,66776.0,66775.0,0.02709327]
[1722320619482,0.9008323,66776.0,66775.0,0.02709327]
[1722320621293,1.19893192,66776.0,66775.0,0.02709327]
[1722320621502,1.16037491,66776.0,66775.0,0.02709327]
[1722320621710,1.13265704,66776.0,66775.0,0.02709327]
[1722320621937,1.16083611,66776.0,66775.0,0.02709327]
[1722320622131,1.16083611,66776.0,66775.0,0.01409327]
[1722320622529,1.16083611,66776.0,66775.0,0.01709327]
[1722320623318,1.17074529,66776.0,66775.0,0.01709327]
[1722320623513,1.16972558,66776.0,66775.0,0.01709327]
[1722320623984,1.17127978,66776.0,66775.0,0.01409327]
[1722320624150,1.16972558,66776.0,66775.0,0.00109327]
[1722320624360,1.16972558,66776.0,66775.0,0.00309327]
[1722320624565,1.16972558,66776.0,66775.0,0.00409327]
[1722320624741,1.19322172,66776.0,66775.0,0.00409327]
[1722320625582,1.19477592,66776.0,66775.0,0.00409327]
[1722320626285,1.17127978,66776.0,66775.0,0.00409327]
[1722320626488,1.16972558,66776.0,66775.0,0.00409327]
[1722320626982,1.17061054,66776.0,66775.0,0.00409327]
[1722320627184,1.16972558,66776.0,66775.0,0.00409327]
[1722320627761,1.16919936,66776.0,66775.0,0.00409327]
[1722320629170,1.17075356,66776.0,66775.0,0.00409327]